{"text_format":"1","workbook":"xlsx","n_sheets":3,"sheets":["Test","Score","Reset"],"not_rendered":{"charts":0,"images":0,"macros":1,"external_links":0,"defined_names":22,"comments":0,"pivot_tables":0},"unopened":[],"bounds":{"document_bytes":16777216,"sheet_cells":100000,"rows_first":2000,"rows_last":500,"rows_between":2000,"halvings":0,"cell_chars":16384,"cell_head_chars":4096},"cells_cut":0,"cells_raw":0,"read":"whole","date_system":"1900"}

{"sheet":"Test","index":0,"n_rows":67,"n_cols":21,"rows_kept":67,"cut":false,"hidden":false,"merged":[[11,3,11,14],[12,3,12,14],[73,2,73,15],[69,3,69,14],[15,3,15,14],[13,3,13,14],[10,3,10,14],[5,3,5,14],[6,3,6,14],[7,3,7,14],[8,3,8,14],[9,3,9,14]]}
[]
[]
[]
[null,null,null,"Entrepreneurial Test"]
[]
[null,null,null,"You need to think about why you would like to own your own business. What makes you think you will be Successful in business? "]
[null,null,null,"Some business development materials start out with a dissertation on the characteristics of the business owner in order to help you decide if you should go into business for yourself. These questions deal with the basic personality of potential entrepreneurs. "]
[null,null,null,"Are you \"entrepreneurial\" enough to build a business?"]
[null,null,null,"Do you know what the meaning of the word \"entrepreneurial\"?"]
[null,null,null,"Are you a risk taker? "]
[null,null,null,"Did you get good grades in school? Did you know many successful entrepreneurs did not?"]
[null,null,null,"You are a cautious person and a good student. Should you forget the whole thing? That's what some entrepreneurial tests would suggest.  "]
[null,null,null,"However, there are many successful business owners who, as an adolescent, were team players, athletes, school leaders, excellent students, and never seriously questioned the status quo. Often, though, a tendency toward caution is not typical of many successful entrepreneurs. Most entrepreneurs tend to be maverick personalities with risk-taking vision and courage. Many entrepreneurs tend to be just a bit \"off beat\" and they sometimes need to be in order to creatively grow a successful business.  "]
[null,null,null,"Obviously there is no set formula for success. However, the following entrepreneurial test may help you in your personal evaluation process. You just need to remember that this is simply a tool. It is fun to take and fun to interpret, but you should keep it in perspective.  "]
[]
[null,null,null,"You must answer ALL questions for the test to be accurate. Place an X in the appropriate box for each question. When completed, click on Process Button. To reset the test, click on the Reset Button."]
[]
[null,null,"1)","I'm persistent. I am persistent. ",null,null,null,null,null," Yes ",null," Maybe ",null," No ",null,null,null,{"$f":"IF(K18=\"X\",3,0)","v":0},{"$f":"IF(M18=\"X\",2,0)","v":0},{"$f":"IF(O18=\"X\",0,0)","v":0}]
[]
[null,null,"2)","When I'm interested in a project, I need less sleep. ",null,null,null,null,null," Yes ",null," Maybe ",null," No ",null,null,null,{"$f":"IF(K20=\"X\",3,0)","v":0},{"$f":"IF(M20=\"X\",2,0)","v":0},{"$f":"IF(O20=\"X\",0,0)","v":0}]
[]
[null,null,"3)","When there's something I want, I keep my goal clearly in mind. ",null,null,null,null,null," Yes ",null," Maybe ",null," No ",null,null,null,{"$f":"IF(K22=\"X\",3,0)","v":0},{"$f":"IF(M22=\"X\",2,0)","v":0},{"$f":"IF(O22=\"X\",0,0)","v":0}]
[]
[null,null,"4)","I examine mistakes and I learn from them. ",null,null,null,null,null," Yes ",null," Maybe ",null," No ",null,null,null,{"$f":"IF(K24=\"X\",3,0)","v":0},{"$f":"IF(M24=\"X\",2,0)","v":0},{"$f":"IF(O24=\"X\",0,0)","v":0}]
[]
[null,null,"5)","I keep New Year's resolutions. ",null,null,null,null,null," Yes ",null," Maybe ",null," No ",null,null,null,{"$f":"IF(K26=\"X\",3,0)","v":0},{"$f":"IF(M26=\"X\",2,0)","v":0},{"$f":"IF(O26=\"X\",0,0)","v":0}]
[]
[null,null,"6)","I have a strong personal need to succeed. ",null,null,null,null,null," Yes ",null," Maybe ",null," No ",null,null,null,{"$f":"IF(K28=\"X\",3,0)","v":0},{"$f":"IF(M28=\"X\",2,0)","v":0},{"$f":"IF(O28=\"X\",0,0)","v":0}]
[]
[null,null,"7)","I have new and different ideas. ",null,null,null,null,null," Yes ",null," Maybe ",null," No ",null,null,null,{"$f":"IF(K30=\"X\",3,0)","v":0},{"$f":"IF(M30=\"X\",2,0)","v":0},{"$f":"IF(O30=\"X\",0,0)","v":0}]
[]
[null,null,"8)","I am adaptable. ",null,null,null,null,null," Yes ",null," Maybe ",null," No ",null,null,null,{"$f":"IF(K32=\"X\",3,0)","v":0},{"$f":"IF(M32=\"X\",2,0)","v":0},{"$f":"IF(O32=\"X\",0,0)","v":0}]
[]
[null,null,"9)","I am curious. ",null,null,null,null,null," Yes ",null," Maybe ",null," No ",null,null,null,{"$f":"IF(K34=\"X\",3,0)","v":0},{"$f":"IF(M34=\"X\",2,0)","v":0},{"$f":"IF(O34=\"X\",0,0)","v":0}]
[]
[null,null,"10)","I am intuitive. ",null,null,null,null,null," Yes ",null," Maybe ",null," No ",null,null,null,{"$f":"IF(K36=\"X\",3,0)","v":0},{"$f":"IF(M36=\"X\",2,0)","v":0},{"$f":"IF(O36=\"X\",0,0)","v":0}]
[]
[null,null,"11)","If something can't be done, I find a way. ",null,null,null,null,null," Yes ",null," Maybe ",null," No ",null,null,null,{"$f":"IF(K38=\"X\",3,0)","v":0},{"$f":"IF(M38=\"X\",2,0)","v":0},{"$f":"IF(O38=\"X\",0,0)","v":0}]
[]
[null,null,"12)","I see problems as challenges. ",null,null,null,null,null," Yes ",null," Maybe ",null," No ",null,null,null,{"$f":"IF(K40=\"X\",3,0)","v":0},{"$f":"IF(M40=\"X\",2,0)","v":0},{"$f":"IF(O40=\"X\",0,0)","v":0}]
[]
[null,null,"13)","I take chances. ",null,null,null,null,null," Yes ",null," Maybe ",null," No ",null,null,null,{"$f":"IF(K42=\"X\",3,0)","v":0},{"$f":"IF(M42=\"X\",2,0)","v":0},{"$f":"IF(O42=\"X\",0,0)","v":0}]
[]
[null,null,"14)","I'll gamble on a good idea even if it isn't a sure thing. ",null,null,null,null,null," Yes ",null," Maybe ",null," No ",null,null,null,{"$f":"IF(K44=\"X\",3,0)","v":0},{"$f":"IF(M44=\"X\",2,0)","v":0},{"$f":"IF(O44=\"X\",0,0)","v":0}]
[]
[null,null,"15)","To learn something new, I explore unfamiliar subjects. ",null,null,null,null,null," Yes ",null," Maybe ",null," No ",null,null,null,{"$f":"IF(K46=\"X\",3,0)","v":0},{"$f":"IF(M46=\"X\",2,0)","v":0},{"$f":"IF(O46=\"X\",0,0)","v":0}]
[]
[null,null,"16)","I can recover from emotional setbacks. ",null,null,null,null,null," Yes ",null," Maybe ",null," No ",null,null,null,{"$f":"IF(K48=\"X\",3,0)","v":0},{"$f":"IF(M48=\"X\",2,0)","v":0},{"$f":"IF(O48=\"X\",0,0)","v":0}]
[]
[null,null,"17)","I feel sure of myself. ",null,null,null,null,null," Yes ",null," Maybe ",null," No ",null,null,null,{"$f":"IF(K50=\"X\",3,0)","v":0},{"$f":"IF(M50=\"X\",2,0)","v":0},{"$f":"IF(O50=\"X\",0,0)","v":0}]
[]
[null,null,"18)","I'm a positive person. ",null,null,null,null,null," Yes ",null," Maybe ",null," No ",null,null,null,{"$f":"IF(K52=\"X\",3,0)","v":0},{"$f":"IF(M52=\"X\",2,0)","v":0},{"$f":"IF(O52=\"X\",0,0)","v":0}]
[]
[null,null,"19)","I experiment with new ways to do things. ",null,null,null,null,null," Yes ",null," Maybe ",null," No ",null,null,null,{"$f":"IF(K54=\"X\",3,0)","v":0},{"$f":"IF(M54=\"X\",2,0)","v":0},{"$f":"IF(O54=\"X\",0,0)","v":0}]
[]
[null,null,"20)","I'm willing to undergo sacrifices to gain possible long term rewards. ",null,null,null,null,null," Yes ",null," Maybe ",null," No ",null,null,null,{"$f":"IF(K56=\"X\",3,0)","v":0},{"$f":"IF(M56=\"X\",2,0)","v":0},{"$f":"IF(O56=\"X\",0,0)","v":0}]
[]
[null,null,"21)","I usually do things my own way. ",null,null,null,null,null," Yes ",null," Maybe ",null," No ",null,null,null,{"$f":"IF(K58=\"X\",3,0)","v":0},{"$f":"IF(M58=\"X\",2,0)","v":0},{"$f":"IF(O58=\"X\",0,0)","v":0}]
[]
[null,null,"22)","I tend to rebel against authority. ",null,null,null,null,null," Yes ",null," Maybe ",null," No ",null,null,null,{"$f":"IF(K60=\"X\",3,0)","v":0},{"$f":"IF(M60=\"X\",2,0)","v":0},{"$f":"IF(O60=\"X\",0,0)","v":0}]
[]
[null,null,"23)","I often enjoy being alone. ",null,null,null,null,null," Yes ",null," Maybe ",null," No ",null,null,null,{"$f":"IF(K62=\"X\",3,0)","v":0},{"$f":"IF(M62=\"X\",2,0)","v":0},{"$f":"IF(O62=\"X\",0,0)","v":0}]
[]
[null,null,"24)","I like to be in control. ",null,null,null,null,null," Yes ",null," Maybe ",null," No ",null,null,null,{"$f":"IF(K64=\"X\",3,0)","v":0},{"$f":"IF(M64=\"X\",2,0)","v":0},{"$f":"IF(O64=\"X\",0,0)","v":0}]
[]
[null,null,"25)","I have a reputation for being stubborn. ",null,null,null,null,null," Yes ",null," Maybe ",null," No ",null,null,null,{"$f":"IF(K66=\"X\",3,0)","v":0},{"$f":"IF(M66=\"X\",2,0)","v":0},{"$f":"IF(O66=\"X\",0,0)","v":0}]
[null,null,null," ",null,null,null,null,null,null,null,null,null,null,null,null,null,{"$f":"SUM(R18:R66)","v":0},{"$f":"SUM(S18:S66)","v":0},{"$f":"SUM(T18:T66)","v":0},{"$f":"SUM(R67:T67)","v":0}]

{"sheet":"Score","index":1,"n_rows":12,"n_cols":9,"rows_kept":12,"cut":false,"hidden":false,"merged":[[11,3,11,14],[12,3,12,14],[5,3,5,14],[8,3,8,14],[9,3,9,14],[10,3,10,14]]}
[]
[]
[]
[null,null,null,"Entrepreneurial Test"]
[]
[null,null,null,"Your Score"]
[null,null,null,null,null,null,null,null,{"$f":"Test!$U$67","v":0}]
[]
[null,null,null,"If you scored between 60 and 75, you can start that business plan. You have the earmarks of an entrepreneur. "]
[null,null,null,"If you scored between 48 and 59, you have potential but need to push yourself. You may want to improve your skills in your weaker areas. This can be accomplished by either improving yourself in these areas or by hiring someone with these skills. "]
[null,null,null,"If you scored between 37 and 47, you may not want to start a business alone. Look for a business partner who can compliment you in the areas where you are weak. "]
[null,null,null,"If you scored below 37, self-employment may not be for you. You will probably be happier and more successful working for someone else. However only you can make that decision.  "]

{"sheet":"Reset","index":2,"n_rows":49,"n_cols":11,"rows_kept":49,"cut":false,"hidden":true,"merged":[]}
["I'm persistent. I am persistent. ",null,null,null,null,null," Yes ",null," Maybe ",null," No "]
[]
["When I'm interested in a project, I need less sleep. ",null,null,null,null,null," Yes ",null," Maybe ",null," No "]
[]
["When there's something I want, I keep my goal clearly in mind. ",null,null,null,null,null," Yes ",null," Maybe ",null," No "]
[]
["I examine mistakes and I learn from them. ",null,null,null,null,null," Yes ",null," Maybe ",null," No "]
[]
["I keep New Year's resolutions. ",null,null,null,null,null," Yes ",null," Maybe ",null," No "]
[]
["I have a strong personal need to succeed. ",null,null,null,null,null," Yes ",null," Maybe ",null," No "]
[]
["I have new and different ideas. ",null,null,null,null,null," Yes ",null," Maybe ",null," No "]
[]
["I am adaptable. ",null,null,null,null,null," Yes ",null," Maybe ",null," No "]
[]
["I am curious. ",null,null,null,null,null," Yes ",null," Maybe ",null," No "]
[]
["I am intuitive. ",null,null,null,null,null," Yes ",null," Maybe ",null," No "]
[]
["If something can't be done, I find a way. ",null,null,null,null,null," Yes ",null," Maybe ",null," No "]
[]
["I see problems as challenges. ",null,null,null,null,null," Yes ",null," Maybe ",null," No "]
[]
["I take chances. ",null,null,null,null,null," Yes ",null," Maybe ",null," No "]
[]
["I'll gamble on a good idea even if it isn't a sure thing. ",null,null,null,null,null," Yes ",null," Maybe ",null," No "]
[]
["To learn something new, I explore unfamiliar subjects. ",null,null,null,null,null," Yes ",null," Maybe ",null," No "]
[]
["I can recover from emotional setbacks. ",null,null,null,null,null," Yes ",null," Maybe ",null," No "]
[]
["I feel sure of myself. ",null,null,null,null,null," Yes ",null," Maybe ",null," No "]
[]
["I'm a positive person. ",null,null,null,null,null," Yes ",null," Maybe ",null," No "]
[]
["I experiment with new ways to do things. ",null,null,null,null,null," Yes ",null," Maybe ",null," No "]
[]
["I'm willing to undergo sacrifices to gain possible long term rewards. ",null,null,null,null,null," Yes ",null," Maybe ",null," No "]
[]
["I usually do things my own way. ",null,null,null,null,null," Yes ",null," Maybe ",null," No "]
[]
["I tend to rebel against authority. ",null,null,null,null,null," Yes ",null," Maybe ",null," No "]
[]
["I often enjoy being alone. ",null,null,null,null,null," Yes ",null," Maybe ",null," No "]
[]
["I like to be in control. ",null,null,null,null,null," Yes ",null," Maybe ",null," No "]
[]
["I have a reputation for being stubborn. ",null,null,null,null,null," Yes ",null," Maybe ",null," No "]